bitfinex-derivatives/quotes_BNBF0:USTF0_20250309
["timestamp","ask_amount","ask_price","bid_price","bid_amount"]
[1741552643332,0.3099698,561.63,561.16,0.29488614]
[1741552643733,0.3099698,561.63,561.17,0.35639823]
[1741552644330,0.759,561.64,561.17,0.35639823]
[1741552644633,1.40290606,561.62,561.18,0.29507458]
[1741552645126,1.40290606,561.61,561.17,0.35639823]
[1741552645325,1.71289795,561.61,561.18,0.29506246]
[1741552645529,1.40290606,561.6,561.18,0.29506246]
[1741552646233,1.40290606,561.59,561.18,0.29506246]
[1741552646729,1.40290606,561.58,561.17,0.35639823]
[1741552647129,1.40290606,561.57,561.17,0.35639823]
[1741552647534,0.31007752,561.56,561.17,0.35639823]
[1741552647736,1.71298358,561.56,561.17,0.35639823]
[1741552648335,1.40290606,561.55,561.17,0.35639823]
[1741552648734,1.40290606,561.54,561.17,0.35639823]
[1741552649530,1.40290606,561.53,561.17,0.35639823]
[1741552649932,0.31007752,561.56,561.17,0.35639823]
[1741552650337,0.286,561.66,561.17,0.35639823]
[1741552650640,0.31004437,561.55,561.18,0.29497762]
[1741552650830,0.286,561.66,561.18,0.29497762]
[1741552651334,1.40214873,561.65,561.18,0.29497762]
[1741552651639,1.71203987,561.65,561.18,0.29497762]
[1741552651935,0.887,561.64,561.19,0.35638553]
[1741552652134,0.887,561.64,561.2,0.29497762]
[1741552652335,0.887,561.64,561.21,0.35637283]
[1741552652640,0.887,561.64,561.22,0.29497762]
[1741552652937,0.887,561.64,561.23,0.35636013]
[1741552653141,0.887,561.64,561.24,0.29497762]
[1741552653331,0.887,561.64,561.25,0.35634743]
[1741552653637,0.887,561.64,561.26,0.29497762]
[1741552653837,0.887,561.64,561.27,0.35633474]
[1741552654038,0.887,561.64,561.28,0.29497762]
[1741552654332,0.887,561.64,561.29,0.35632204]
[1741552654637,0.3099146,561.63,561.3,0.29497762]
[1741552654833,0.3099146,561.63,561.31,0.35630934]
[1741552655038,0.3099146,561.63,561.32,0.29497762]
[1741552655234,0.3099146,561.63,561.33,0.35629665]
[1741552655439,0.3099146,561.63,561.34,0.29497762]
[1741552655639,0.3099146,561.63,561.35,0.35628395]
[1741552655940,0.3099146,561.63,561.36,0.29497762]
[1741552656343,0.887,561.64,561.36,0.29497762]
[1741552656743,0.3098732,561.63,561.36,0.29497762]
[1741552658143,0.3098732,561.63,561.35,0.35628395]
[1741552658344,0.3098732,561.63,561.36,0.29440875]
[1741552658742,0.3098732,561.63,561.37,0.35627126]
[1741552658937,0.3098732,561.63,561.38,0.29440875]
[1741552659440,0.887,561.64,561.38,0.29440875]
[1741552660337,0.887,561.64,561.39,0.35625857]
[1741552660541,0.887,561.64,561.4,0.29440875]
[1741552661043,0.887,561.64,561.41,0.35624588]
[1741552661244,0.887,561.64,561.42,0.29440875]
[1741552661445,0.887,561.64,561.43,0.35623319]
[1741552661744,0.887,561.64,561.44,0.29440875]
[1741552662939,0.887,561.64,561.45,0.3562205]
[1741552663142,0.887,561.64,561.46,0.29440875]
[1741552664048,0.887,561.64,561.47,0.35620781]
[1741552664242,0.887,561.64,561.48,0.29440875]
[1741552666347,0.887,561.64,561.47,0.35620781]
[1741552672651,0.30997671,561.63,561.47,0.35620781]
[1741552674352,0.286,561.71,561.47,0.35620781]
[1741552675451,0.30995048,561.7,561.47,0.35620781]
[1741552676053,0.30995048,561.7,560.58,1.32985219]
[1741552676251,1.39832758,561.69,560.6,0.35676061]
[1741552676455,1.39832758,561.69,560.61,0.29460198]
[1741552676658,1.39832758,561.69,560.63,0.35674152]
[1741552677056,1.39832758,561.68,560.64,0.29460198]
[1741552677455,1.39832758,561.67,560.64,0.29460198]
[1741552677651,1.39832758,561.67,560.66,0.35672243]
[1741552678049,1.39832758,561.67,560.67,0.29466942]
[1741552678253,1.39832758,561.66,560.69,0.35670334]
[1741552678454,1.39832758,561.66,560.7,0.29466942]
[1741552678653,1.39832758,561.65,560.72,0.35668426]
[1741552678851,1.39832758,561.65,560.73,0.29466942]
[1741552679256,1.39832758,561.64,560.73,0.29466942]
[1741552679856,1.39832758,561.63,560.73,0.29466942]
[1741552680253,1.025,561.69,560.73,0.29466942]
[1741552680254,1.39832758,561.62,560.73,0.29466942]
[1741552680755,1.70835814,561.62,560.75,0.35666518]
[1741552680959,1.39832758,561.61,560.76,0.29466942]
[1741552681160,0.31003056,561.62,560.78,0.3566461]
[1741552681358,0.31003056,561.62,560.79,0.2945319]
[1741552681559,0.31003056,561.62,560.81,0.35662702]
[1741552681759,0.31003056,561.62,560.82,0.2945319]
[1741552681954,0.31003056,561.62,560.83,0.3566143]
[1741552682158,0.31003056,561.62,560.84,0.2945319]
[1741552682458,0.31003056,561.62,560.85,0.35660158]
[1741552682760,0.31003056,561.62,560.86,0.2945319]
[1741552683160,1.40030438,561.61,560.86,0.2945319]
[1741552683554,0.31003056,561.62,560.86,0.2945319]
[1741552683757,0.31003056,561.62,560.87,0.35658887]
[1741552683958,0.31003056,561.62,560.88,0.2945319]
[1741552685061,0.31003056,561.62,560.89,0.35657615]
[1741552685361,0.31003056,561.62,560.9,0.2945319]
[1741552685557,0.31003056,561.62,560.91,0.35656344]
[1741552685761,0.31003056,561.62,560.92,0.2945319]
[1741552685957,0.31003056,561.62,560.93,0.35655072]
[1741552686360,1.025,561.69,560.94,0.2945319]
[1741552686557,1.025,561.69,560.95,0.35653801]
[1741552686761,1.40115452,561.68,560.95,0.35653801]
[1741552687063,1.40115452,561.67,560.96,0.2945319]
[1741552687262,1.40115452,561.67,560.97,0.3565253]
[1741552687463,0.30997947,561.66,560.98,0.2945319]
[1741552687665,0.30997947,561.66,560.99,0.35651259]
[1741552687965,0.30997947,561.66,561.0,0.29453415]
[1741552688160,0.30997947,561.66,561.01,0.35649988]
[1741552688359,0.30997947,561.66,561.02,0.29453415]
[1741552688557,0.30997947,561.66,561.03,0.35648717]
[1741552688865,0.30997947,561.66,561.04,0.29453415]
[1741552689065,0.30997947,561.66,561.05,0.35647446]
[1741552689363,1.025,561.69,561.06,0.29453415]
[1741552689759,1.025,561.69,561.07,0.35646176]
[1741552690062,1.311,561.69,561.08,0.29453415]
[1741552690267,1.311,561.69,561.09,0.35644905]
[1741552690566,0.30996014,561.68,561.1,0.29453415]
[1741552690775,0.30996014,561.68,561.11,0.35643634]
[1741552690968,0.30996014,561.68,561.12,0.29453415]
[1741552691363,0.30996014,561.68,561.13,0.35642364]
[1741552691563,0.30996014,561.68,561.14,0.29453415]
[1741552691761,0.30996014,561.68,561.15,0.35641094]
[1741552691965,0.30996014,561.68,561.16,0.29453415]
[1741552692160,0.30996014,561.68,561.17,0.35639823]
[1741552692368,1.311,561.69,561.18,0.29453415]
[1741552692567,1.311,561.69,561.19,0.35638553]
[1741552692768,1.311,561.69,561.2,0.29453415]
[1741552692966,1.311,561.69,561.21,0.35637283]
[1741552693166,1.311,561.69,561.22,0.29453415]
[1741552693363,1.311,561.69,561.23,0.35636013]
[1741552693763,0.30991874,561.68,561.24,0.29452281]
[1741552693960,0.30991874,561.68,561.25,0.35634743]
[1741552694160,0.30991874,561.68,561.26,0.29452281]
[1741552694366,0.30991874,561.68,561.27,0.35633474]
[1741552694564,0.30991874,561.68,561.28,0.29452281]
[1741552694765,0.30991874,561.68,561.29,0.35632204]
[1741552694965,0.30991874,561.68,561.3,0.29452281]
[1741552695469,1.311,561.69,561.3,0.29452281]
[1741552695869,1.311,561.69,561.29,0.35632204]
[1741552696068,1.311,561.69,561.3,0.29455544]
[1741552696668,0.30991046,561.68,561.3,0.29455544]
[1741552697263,0.30991046,561.68,561.29,0.35632204]
[1741552697972,0.30991046,561.68,561.3,0.29448546]
[1741552698170,1.311,561.69,561.3,0.29448546]
[1741552698774,0.30985251,561.68,561.3,0.29448546]
[1741552701372,1.311,561.69,561.3,0.29448546]
[1741552701573,0.30987734,561.67,561.3,0.29448546]
[1741552701971,0.30987734,561.67,561.31,0.35630934]
[1741552702274,0.30987734,561.67,561.32,0.29448546]
[1741552704375,1.311,561.69,561.33,0.35629665]
[1741552704574,1.311,561.69,561.34,0.29448546]
[1741552704774,1.311,561.69,561.34,0.65077576]
[1741552704970,1.311,561.69,561.35,0.29448546]
[1741552705372,1.311,561.69,561.36,0.35627761]
[1741552705679,0.30986492,561.68,561.37,0.29448546]
[1741552705977,0.30986492,561.68,561.38,0.35626491]
[1741552706176,0.30986492,561.68,561.39,0.29496654]
[1741552706375,0.30986492,561.68,561.4,0.35625222]
[1741552706575,0.30986492,561.68,561.41,0.29496654]
[1741552706771,0.30986492,561.68,561.42,0.35623953]
[1741552706973,0.30986492,561.68,561.43,0.29496654]
[1741552707373,0.286,561.69,561.43,0.29496654]
[1741552708478,0.30981113,561.68,561.43,0.29496654]
[1741552708674,0.286,561.69,561.43,0.29496654]
[1741552709079,1.4024623,561.97,561.43,0.29496654]
[1741552709380,0.695,561.77,561.43,0.29496654]
[1741552709875,0.695,561.77,561.44,0.35622684]
[1741552710179,0.695,561.77,561.45,0.29496654]
[1741552711280,0.695,561.77,561.46,0.35621415]
[1741552711680,0.695,561.77,561.47,0.29478996]
[1741552712078,0.695,561.77,561.46,0.35621415]
[1741552712274,0.695,561.77,561.47,0.29466413]
[1741552712579,0.695,561.77,561.48,0.35620146]
[1741552712781,0.695,561.77,561.49,0.29466413]
[1741552713475,0.695,561.77,561.5,0.35618878]
[1741552713682,0.695,561.77,561.51,0.29466413]
[1741552713880,0.695,561.77,561.52,0.35617609]
[1741552714182,0.695,561.77,561.53,0.29466413]
[1741552714378,0.695,561.77,561.54,0.3561634]
[1741552714580,0.695,561.77,561.55,0.29466413]
[1741552715581,0.695,561.77,561.54,0.3561634]
[1741552715882,0.695,561.77,561.55,0.29475662]
[1741552716382,0.695,561.77,561.56,0.29475662]
[1741552716681,0.30984837,561.76,561.57,0.29475662]
[1741552716877,0.30984837,561.76,561.15,0.29475662]
[1741552717082,0.30984837,561.76,561.14,1.32985219]
[1741552717281,0.30984837,561.76,561.15,0.29495052]
[1741552717682,0.30984837,561.76,561.16,0.29495052]
[1741552717881,0.30984837,561.76,560.95,0.29495052]
[1741552719278,0.695,561.77,560.95,0.29495052]
[1741552720383,0.695,561.77,560.96,0.29495052]
[1741552720682,0.695,561.77,560.97,0.29495052]
[1741552720985,0.695,561.77,560.98,0.29495052]
[1741552721181,0.30996842,561.76,560.74,0.29495052]
[1741552721381,0.30996842,561.76,560.75,0.29495052]
[1741552721585,0.30996842,561.76,560.74,0.29495052]
[1741552721882,0.30996842,561.76,560.75,0.29495052]
[1741552722079,0.30996842,561.76,560.74,0.29495052]
[1741552722281,0.695,561.77,560.75,0.29495052]
[1741552722482,0.695,561.77,560.76,0.29507194]
[1741552722678,0.30996842,561.75,560.74,0.29507194]
[1741552722884,0.30996842,561.75,560.75,0.29507194]
[1741552723085,0.30996842,561.75,560.76,0.29507194]
[1741552723286,0.30996842,561.75,560.66,0.29507194]
[1741552723477,0.30996842,561.75,560.67,0.29507194]
[1741552723682,0.30996842,561.75,560.68,0.29507194]
[1741552723885,0.30996842,561.75,560.69,0.29507194]
[1741552724085,0.30996842,561.75,560.7,0.29507194]
[1741552724584,0.30996842,561.75,560.65,1.32985219]
[1741552724585,0.30996842,561.75,560.71,0.29507194]
[1741552724784,0.30996842,561.75,560.72,0.29507194]
[1741552724980,0.30996842,561.75,560.73,0.29507194]
[1741552725179,0.30996842,561.75,560.74,0.29507194]
[1741552725381,0.695,561.77,560.75,0.29507194]
[1741552725586,0.695,561.77,560.76,0.29507194]
[1741552725780,0.695,561.77,560.77,0.29507194]
[1741552725981,0.695,561.77,560.78,0.29507194]
[1741552726184,0.695,561.77,560.79,0.29507194]
[1741552726482,0.30997257,561.76,560.8,0.29507194]
[1741552726779,0.30997257,561.76,560.87,1.32985219]
[1741552726983,0.30997257,561.76,560.88,0.29507194]
[1741552727183,0.30997257,561.76,560.89,0.29507194]
[1741552727379,0.30997257,561.76,560.9,0.29507194]
[1741552727682,0.30997257,561.76,560.91,0.29507194]
[1741552727888,0.30997257,561.76,560.92,0.29507194]
[1741552728087,0.30997257,561.76,560.93,0.29507194]
[1741552728281,0.286,561.82,560.94,0.29507194]
[1741552728486,0.286,561.82,560.95,0.29507194]
[1741552728681,0.286,561.82,560.96,0.29507194]
[1741552728884,0.286,561.82,560.97,0.29507194]
[1741552729082,0.286,561.82,560.98,0.29507194]
[1741552729280,0.286,561.82,561.03,1.32985219]
[1741552729687,0.30991184,561.81,561.04,0.29494069]
[1741552730188,0.30991184,561.81,561.05,0.29494069]
[1741552730483,0.30991184,561.81,561.06,0.29494069]
[1741552730687,0.30991184,561.81,561.07,0.29494069]
[1741552730887,0.30991184,561.81,561.04,0.29494069]
[1741552731187,0.30991184,561.81,561.05,0.29494069]
[1741552731488,0.994,561.8,561.06,0.29494069]
[1741552731688,0.994,561.8,561.04,0.29494069]
[1741552731883,0.994,561.8,561.08,1.32985219]
[1741552732083,0.994,561.8,561.09,0.29494069]
[1741552732483,0.30989942,561.79,561.09,0.29494069]
[1741552733289,0.30989942,561.79,561.1,0.29487367]
[1741552733490,0.30989942,561.79,561.09,0.29487367]
[1741552733685,0.30989942,561.79,561.1,0.29487367]
[1741552733890,0.30989942,561.79,561.11,0.29487367]
[1741552734090,0.30989942,561.79,561.12,0.29487367]
[1741552734391,0.286,561.78,561.13,0.29487367]
[1741552734589,0.286,561.78,561.14,0.29487367]
[1741552734784,0.286,561.78,561.09,0.29487367]
[1741552734985,0.286,561.78,561.09,1.62472586]
[1741552735184,0.286,561.78,561.1,0.29487367]
[1741552735590,0.30989528,561.77,561.1,0.29487367]
[1741552737092,0.30989528,561.77,560.89,0.29487367]
[1741552737391,0.286,561.78,560.9,0.29487367]
[1741552737594,0.286,561.78,560.91,0.29487367]
[1741552737792,0.30993254,561.77,560.92,0.29487367]
[1741552738092,0.30993254,561.77,560.93,0.29487367]
[1741552738287,0.30993254,561.77,560.89,0.29487367]
[1741552739488,0.30993254,561.77,560.9,0.29487367]
[1741552739692,0.30993254,561.77,560.78,0.29487367]
[1741552739892,0.30993254,561.77,560.79,0.29487367]
[1741552740094,0.30993254,561.77,560.78,0.29487367]
[1741552740296,0.286,561.78,560.79,0.29495066]
[1741552740692,0.30996152,561.76,560.8,0.29495066]
[1741552740890,0.30996152,561.76,560.78,0.29495066]
[1741552741097,0.30996152,561.76,560.81,0.29495066]
[1741552741296,0.30996152,561.76,560.82,0.29495066]
[1741552741597,0.30996152,561.76,560.47,2.71529481]
[1741552741598,0.30996152,561.76,560.83,0.29495066]
[1741552741897,0.30996152,561.76,560.84,0.29495066]
[1741552742090,0.30996152,561.76,560.77,0.29495066]
[1741552742993,1.40175707,561.75,560.77,0.29495066]
[1741552743199,1.40175707,561.75,560.78,0.29495066]
[1741552743395,1.40175707,561.75,560.76,1.32985219]
[1741552743601,1.71174344,561.74,560.77,0.29523463]
[1741552743802,1.71174344,561.74,560.45,2.71529481]
[1741552743803,1.40175707,561.73,560.78,0.29523463]
[1741552744000,1.40175707,561.73,560.79,0.29523463]
[1741552744201,1.40175707,561.73,560.8,0.29523463]
[1741552744399,0.30998637,561.74,560.81,0.29523463]
[1741552744600,0.30998637,561.74,560.82,0.29523463]
[1741552744800,0.30998637,561.74,560.83,0.29523463]
[1741552745001,0.30998637,561.74,560.84,0.29523463]
[1741552745301,0.30998637,561.74,560.86,0.35659522]
[1741552745707,0.30998637,561.74,560.87,0.29523463]
[1741552745903,0.30998637,561.74,560.89,0.35657615]
[1741552746100,0.30998637,561.74,560.9,0.29524918]
[1741552746300,0.286,561.78,560.9,0.29524918]
[1741552746697,1.40268396,561.77,560.9,0.29524918]
[1741552746895,1.40268396,561.77,560.91,0.29524918]
[1741552747100,1.40268396,561.77,560.89,0.35657615]
[1741552747297,0.286,561.78,560.9,0.295163]
[1741552747495,0.286,561.78,560.89,0.35657615]
[1741552747496,0.30995048,561.76,560.91,0.295163]
[1741552747702,0.30995048,561.76,560.92,0.295163]
[1741552747898,0.30995048,561.76,560.94,0.35654437]
[1741552748099,0.30995048,561.76,560.95,0.295163]
[1741552748405,0.30995048,561.76,560.97,0.3565253]
[1741552748602,0.30995048,561.76,560.98,0.295163]
[1741552748799,0.30995048,561.76,560.99,0.295163]
[1741552749001,0.30995048,561.76,561.0,0.295163]
[1741552749203,0.30995048,561.76,561.01,0.295163]
[1741552749403,0.30995048,561.76,560.97,0.3565253]
[1741552749404,0.286,561.78,561.07,1.32985219]
[1741552749701,0.286,561.78,561.08,0.295163]
[1741552750309,0.30988976,561.77,561.08,0.295163]
[1741552750504,0.30988976,561.77,561.09,0.35644905]
[1741552750709,0.30988976,561.77,561.1,0.2948887]
[1741552751515,0.30988976,561.77,561.11,0.35643634]
[1741552751713,0.30988976,561.77,561.23,1.32985219]
[1741552752012,0.30988976,561.77,561.24,0.65134649]
[1741552752210,0.30988976,561.77,561.25,0.65134014]
[1741552752410,0.994,561.8,561.26,0.29499271]
[1741552752612,0.30986492,561.76,561.27,0.2951159]
[1741552752812,0.30986492,561.76,561.28,0.35632839]
[1741552753011,0.30986492,561.76,561.29,0.2951159]
[1741552753412,0.30986492,561.76,561.3,0.35631569]
[1741552753713,0.30986492,561.76,561.31,0.2951159]
[1741552754011,0.30986492,561.76,561.32,0.356303]
[1741552754412,0.30986492,561.76,561.33,0.29511846]
[1741552754613,0.30986492,561.76,561.34,0.3562903]
[1741552754813,0.285,561.75,561.35,0.29511846]
[1741552755014,0.285,561.75,561.36,0.35627761]
[1741552755307,0.285,561.75,561.37,0.29511846]
[1741552755609,0.285,561.75,561.38,0.35626491]
[1741552755813,0.285,561.75,561.39,0.29511846]
[1741552756008,0.285,561.75,561.38,0.35626491]
[1741552756009,0.285,561.75,561.4,0.35625222]
[1741552756208,0.285,561.75,561.4,0.65147526]
[1741552756413,0.285,561.75,561.41,0.29522304]
[1741552756612,0.30982354,561.74,561.41,0.29522304]
[1741552757011,0.30982354,561.74,561.42,0.35623953]
[1741552757213,0.30982354,561.74,561.43,0.29522304]
[1741552758414,0.285,561.75,561.43,0.29522304]
[1741552758715,0.30982354,561.73,561.43,0.29522304]
[1741552761315,0.285,561.75,561.42,0.35623953]
[1741552761517,0.285,561.75,561.43,0.29520039]
[1741552762614,0.30985389,561.74,561.43,0.29520039]
[1741552763412,0.30985389,561.74,561.42,0.35623953]
[1741552763413,0.30985389,561.74,561.44,0.2952561]
[1741552763619,0.30985389,561.74,561.45,0.2952561]
[1741552763816,0.30985389,561.74,561.42,0.35623953]
[1741552764219,0.285,561.75,561.42,0.35623953]
[1741552764620,0.30991046,561.73,561.42,0.35623953]
[1741552765521,1.40352032,561.72,561.42,0.35623953]
[1741552765721,1.40352032,561.71,561.42,0.35623953]
[1741552766321,1.40352032,561.7,561.42,0.35623953]
[1741552766919,1.40352032,561.69,561.42,0.35623953]
[1741552767216,1.40352032,561.68,561.42,0.35623953]
[1741552767621,0.285,561.75,561.42,0.35623953]
[1741552768021,1.40318448,561.74,561.42,0.35623953]
[1741552768418,1.40318448,561.73,561.42,0.35623953]
[1741552768722,1.40318448,561.72,561.42,0.35623953]
[1741552769321,1.40318448,561.71,561.42,0.35623953]
[1741552769723,1.40318448,561.7,561.42,0.35623953]
[1741552770424,1.40318448,561.69,561.42,0.35623953]
[1741552770836,1.40318448,561.68,561.42,0.35623953]
[1741552771524,1.40318448,561.67,561.42,0.35623953]
[1741552771922,1.40318448,561.66,561.42,0.35623953]
[1741552772825,1.40318448,561.65,561.42,0.35623953]
[1741552773026,0.3099698,561.73,561.42,0.35623953]
[1741552773228,2.86272672,561.72,561.42,0.35623953]
[1741552773526,2.86272672,561.71,561.42,0.35623953]
[1741552773721,3.96319823,561.71,561.42,0.35623953]
[1741552773922,1.78032054,561.7,561.42,0.35623953]
[1741552774125,3.96319823,561.71,561.42,0.35623953]
[1741552774327,4.26861761,561.7,561.42,0.35623953]
[1741552774525,1.78032054,561.69,561.42,0.35623953]
[1741552774722,1.40508095,561.69,561.42,0.35623953]
[1741552774922,2.86366511,561.68,561.42,0.35623953]
[1741552775127,2.86366511,561.67,561.42,0.35623953]
[1741552775328,2.86415668,561.66,561.42,0.35623953]
[1741552775528,3.65417402,561.67,561.42,0.35623953]
[1741552775729,2.86406773,561.66,561.42,0.35623953]
[1741552776029,3.65417402,561.66,561.42,0.35623953]
[1741552776229,2.86413947,561.65,561.42,0.35623953]
[1741552776425,3.18553264,561.64,561.42,0.35623953]
[1741552776626,1.40508095,561.64,561.42,0.35623953]
[1741552777024,1.40508095,561.63,561.42,0.35623953]
[1741552777730,1.40508095,561.62,561.42,0.35623953]
[1741552778527,1.40508095,561.61,561.42,0.35623953]
[1741552778925,1.40508095,561.6,561.42,0.35623953]
[1741552779633,1.71511703,561.59,561.42,0.35623953]
[1741552780230,2.48902245,561.58,561.42,0.35623953]
[1741552780430,4.26962528,561.57,561.42,0.35623953]
[1741552780631,2.86454433,561.56,561.42,0.35623953]
[1741552780831,1.40508095,561.57,561.42,0.35623953]
[1741552781031,2.86438472,561.56,561.42,0.35623953]
[1741552781228,1.40508095,561.56,561.42,0.35623953]
[1741552781833,1.40508095,561.55,561.42,0.35623953]
[1741552782335,1.40508095,561.54,561.42,0.35623953]
[1741552782629,1.40508095,561.53,561.42,0.35623953]
[1741552783032,1.40508095,561.52,561.42,0.35623953]
[1741552783735,1.71517505,561.51,561.42,0.35623953]
[1741552784335,1.40508095,561.5,561.42,0.35623953]
[1741552784930,1.40508095,561.49,561.42,0.35623953]
[1741552785433,4.58222951,561.69,561.42,0.35623953]
[1741552785630,7.44560153,561.68,561.42,0.35623953]
[1741552785832,7.44560153,561.67,561.42,0.35623953]
[1741552786031,7.44560153,561.66,561.42,0.35623953]
[1741552786230,11.09876196,561.65,561.42,0.35623953]
[1741552786438,7.44434916,561.64,561.42,0.35623953]
[1741552786631,5.71234184,561.63,561.42,0.35623953]
[1741552786836,2.86337202,561.62,561.42,0.35623953]
[1741552787032,2.86337202,561.61,561.42,0.35623953]
[1741552787232,2.86337202,561.6,561.42,0.35623953]
[1741552787439,2.86337202,561.59,561.42,0.35623953]
[1741552787639,2.86337202,561.58,561.42,0.35623953]
[1741552787840,2.86292754,561.57,561.42,0.35623953]
[1741552788135,3.65316043,561.58,561.42,0.35623953]
[1741552788340,1.4050617,561.57,561.42,0.35623953]
[1741552788742,1.71514889,561.57,561.42,0.35623953]
[1741552788939,1.4050617,561.56,561.42,0.35623953]
[1741552789138,1.4050617,561.55,561.42,0.35623953]
[1741552789737,0.31008719,561.57,561.42,0.35623953]
[1741552791535,2.84873172,561.69,561.42,0.35623953]
[1741552791739,2.86290314,561.68,561.42,0.35623953]
[1741552791942,2.86290314,561.67,561.42,0.35623953]
[1741552792242,3.65218487,561.67,561.42,0.35623953]
[1741552792637,1.714677,561.66,561.42,0.35623953]
[1741552793039,1.40468649,561.65,561.42,0.35623953]
[1741552793542,1.40468649,561.64,561.42,0.35623953]
[1741552794537,1.40468649,561.63,561.42,0.35623953]
[1741552794941,1.40468649,561.62,561.42,0.35623953]
[1741552795445,4.5808495,561.75,561.42,0.35623953]
[1741552795743,0.30997809,561.61,561.42,0.35623953]
[1741552795943,4.58085307,561.73,561.42,0.35623953]
[1741552796145,7.44408286,561.72,561.42,0.35623953]
[1741552796442,11.09706354,561.71,561.42,0.35623953]
[1741552796639,7.44408286,561.7,561.42,0.35623953]
[1741552796838,2.86322979,561.69,561.42,0.35623953]
[1741552797045,3.96295877,561.71,561.42,0.35623953]
[1741552797046,2.86322979,561.68,561.42,0.35623953]
[1741552797344,2.86322979,561.67,561.42,0.35623953]
[1741552797545,2.86322979,561.66,561.42,0.35623953]
[1741552797742,2.86322979,561.65,561.42,0.35623953]
[1741552797942,1.78048119,561.64,561.42,0.35623953]
[1741552798143,3.65298068,561.65,561.42,0.35623953]
[1741552798344,1.40499257,561.63,561.42,0.35623953]
[1741552798741,1.40499257,561.62,561.42,0.35623953]
[1741552799246,1.40499257,561.61,561.42,0.35623953]
[1741552799748,0.30998085,561.66,561.42,0.35623953]
[1741552800447,1.40499921,561.65,561.42,0.35623953]
[1741552800846,0.30998085,561.64,561.42,0.35623953]
[1741552801146,1.40499921,561.63,561.42,0.35623953]
[1741552802048,1.40499921,561.62,561.42,0.35623953]
[1741552803151,1.40499921,561.61,561.42,0.35623953]
[1741552803547,1.7149911,561.6,561.42,0.35623953]
[1741552804243,1.40499921,561.59,561.42,0.35623953]
[1741552804847,1.40499921,561.58,561.42,0.35623953]
[1741552805451,1.40499921,561.57,561.42,0.35623953]
[1741552805952,1.40499921,561.56,561.42,0.35623953]
[1741552806552,5.11506089,561.74,561.42,0.35623953]
[1741552806754,7.44399306,561.73,561.42,0.35623953]
[1741552807051,7.44399306,561.72,561.42,0.35623953]
[1741552807244,7.44399306,561.71,561.42,0.35623953]
[1741552807446,7.44399306,561.7,561.42,0.35623953]
[1741552807645,7.44399306,561.69,561.42,0.35623953]
[1741552807951,2.86305918,561.68,561.42,0.35623953]
[1741552808252,2.86305918,561.67,561.42,0.35623953]
[1741552808447,2.86305918,561.66,561.42,0.35623953]
[1741552808646,2.86305167,561.65,561.42,0.35623953]
[1741552808849,4.2679668,561.64,561.42,0.35623953]
[1741552809146,2.86307363,561.63,561.42,0.35623953]
[1741552809351,3.65277935,561.63,561.42,0.35623953]
[1741552810055,1.40491513,561.62,561.42,0.35623953]
[1741552810551,1.40491513,561.61,561.42,0.35623953]
[1741552811150,0.30998361,561.7,561.42,0.35623953]
[1741552811553,1.40524595,561.69,561.42,0.35623953]
[1741552812052,0.30998361,561.7,561.42,0.35623953]
[1741552812652,1.40540186,561.69,561.42,0.35623953]
[1741552813248,1.40540186,561.68,561.42,0.35623953]
[1741552813754,0.30998361,561.7,561.42,0.35623953]
[1741552814055,1.40562326,561.69,561.42,0.35623953]
[1741552814555,1.40562326,561.68,561.42,0.35623953]
[1741552814950,2.86371045,561.67,561.42,0.35623953]
[1741552815151,3.655146,561.67,561.42,0.35623953]
[1741552815349,1.78027448,561.66,561.42,0.35623953]
[1741552815548,1.40621621,561.65,561.42,0.35623953]
[1741552816254,1.40621621,561.64,561.42,0.35623953]
[1741552816654,1.40621621,561.63,561.42,0.35623953]
[1741552817154,1.40621621,561.62,561.42,0.35623953]
[1741552817549,1.40621621,561.61,561.42,0.35623953]
[1741552818153,1.40621621,561.6,561.42,0.35623953]
[1741552818550,0.30998775,561.59,561.42,0.35623953]
[1741552819556,1.40718426,561.58,561.42,0.35623953]
[1741552820158,1.40718426,561.57,561.42,0.35623953]
[1741552820957,1.40718426,561.56,561.42,0.35623953]
[1741552821558,1.40718426,561.55,561.42,0.35623953]
[1741552821859,1.71718582,561.55,561.42,0.35623953]
[1741552822255,1.40718426,561.54,561.42,0.35623953]
[1741552823055,0.31000156,561.55,561.42,0.35623953]
[1741552824361,1.4088367,561.54,561.42,0.35623953]
[1741552824855,1.71881341,561.54,561.42,0.35623953]
[1741552825060,1.4088367,561.53,561.42,0.35623953]
[1741552825761,0.30997671,561.54,561.42,0.35623953]
[1741552827358,4.58578922,561.69,561.42,0.35623953]
[1741552827558,11.11557819,561.68,561.42,0.35623953]
[1741552827860,0.3099698,561.53,561.42,0.35623953]
[1741552828060,3.66356757,561.68,561.42,0.35623953]
[1741552828261,7.45217565,561.67,561.42,0.35623953]
[1741552828461,2.8662214,561.66,561.42,0.35623953]